Workbook

Sheet Rennen 1
A1: Rennnstatistik | B1: 2015-04-25
A3: Name | B3: Beste Rundenzeit | C3: Bestzeit in Runde | D3: Mittlere Rundenzeit | E3: Gesamt- fahrzeit | F3: Mittlere Geschwindigkeit | G3: Runden | H3: Zusatzgewicht | I3: Platzierung | J3: Punkte
A4: Marcel | B4: 26.32 | C4: 71 | D4: 26.62 | E4: 00:35:02 | F4: 42.61 | G4: 79 | H4: 0 | I4: 1 | J4: =IF(I4=1,10,IF(I4=2,8,IF(I4=3,6,IF(I4=4,5,IF(I4=5,4,IF(I4=6,3,IF(I4=7,2,IF(I4=8,1,0)))))))) -> 10
A5: Sebastian | B5: 26.78 | C5: 76 | D5: 27.35 | E5: 00:35:06 | F5: 41.46 | G5: 77 | H5: 0 | I5: 2 | J5: =IF(I5=1,10,IF(I5=2,8,IF(I5=3,6,IF(I5=4,5,IF(I5=5,4,IF(I5=6,3,IF(I5=7,2,IF(I5=8,1,0)))))))) -> 8
A6: Thomas | B6: 26.82 | C6: 9 | D6: 27.40 | E6: 00:35:11 | F6: 41.38 | G6: 77 | H6: 0 | I6: 3 | J6: 6
A7: Simon | B7: 27.04 | C7: 30 | D7: 27.83 | E7: 00:35:17 | F7: 40.75 | G7: 76 | H7: 0 | I7: 4 | J7: 5
A8: Siegfried | B8: 27.19 | C8: 6 | D8: 27.87 | E8: 00:35:19 | F8: 40.68 | G8: 76 | H8: 0 | I8: 5 | J8: 4
A9: Christian | B9: 27.74 | C9: 15 | D9: 28.66 | E9: 00:35:23 | F9: 39.57 | G9: 74 | H9: 0 | I9: 6 | J9: 3
A10: Richard | B10: 27.97 | D10: 29.58 | E10: 00:35:03 | F10: 38.33 | G10: 71 | H10: 0 | I10: 7 | J10: 2
A11: Anna | J11: 0
A12: Carlos | J12: 0
A13: Jens | J13: 0

Sheet Rennen 2
A1: Rennnstatistik | B1: 2015-05-30
A3: Name | B3: Beste Rundenzeit | C3: Bestzeit in Runde | D3: Mittlere Rundenzeit | E3: Gesamt- fahrzeit | F3: Mittlere Geschwindigkeit | G3: Runden | H3: Zusatzgewicht | I3: Platzierung | J3: Punkte
A4: Marcel | B4: 26.98 | C4: 63 | D4: 27.28 | E4: 1.666666667 | F4: 41.57 | G4: 88 | H4: 30 | I4: 1 | J4: =IF(I4=1,10,IF(I4=2,8,IF(I4=3,6,IF(I4=4,5,IF(I4=5,4,IF(I4=6,3,IF(I4=7,2,IF(I4=8,1,0)))))))) -> 10
A5: Sebastian | B5: 27.49 | C5: 5 | D5: 28.05 | E5: 1.675694444 | F5: 40.43 | G5: 86 | H5: 20 | I5: 3 | J5: =IF(I5=1,10,IF(I5=2,8,IF(I5=3,6,IF(I5=4,5,IF(I5=5,4,IF(I5=6,3,IF(I5=7,2,IF(I5=8,1,0)))))))) -> 6
A6: Thomas | B6: 26.94 | C6: 62 | D6: 27.4 | E6: 1.675694444 | F6: 41.39 | G6: 88 | H6: 10 | I6: 2 | J6: 8
A7: Simon | B7: 27.12 | C7: 18 | D7: 28.05 | E7: 1.675694444 | F7: 40.42 | G7: 86 | I7: 4 | J7: 5
A8: Siegfried | B8: 27.29 | C8: 46 | D8: 28.06 | E8: 1.676388889 | F8: 40.42 | G8: 86 | I8: S5 | J8: 0
A9: Christian | B9: 27.68 | C9: 8 | D9: 28.59 | E9: 1.66875 | F9: 39.67 | G9: 84 | I9: 7 | J9: 2
A10: Richard | B10: 27.81 | C10: 7 | D10: 28.74 | E10: 1.679166667 | F10: 39.46 | G10: 84 | I10: -9 | J10: 0
A11: Anna | B11: 27.92 | C11: 21 | D11: 29.53 | E11: 1.601388889 | F11: 38.40 | G11: 78 | I11: 10 | J11: 0
A12: Carlos | B12: 27.6 | C12: 69 | E12: 1.674305556 | F12: 39.56 | G12: 84 | I12: 8 | J12: 1
A13: Jens | B13: 27.32 | C13: 23 | D13: 28.58 | E13: 1.688194444 | F13: 39.68 | G13: 85 | I13: 6 | J13: 3

Sheet Rennen 3
A1: Rennnstatistik | B1: 2015-06-20
A3: Name | B3: Beste Rundenzeit | C3: Bestzeit in Runde | D3: Mittlere Rundenzeit | E3: Gesamt- fahrzeit | F3: Mittlere Geschwindigkeit | G3: Runden | H3: Zusatzgewicht | I3: Platzierung | J3: Punkte
A4: Marcel | B4: 27.07 | C4: 33 | D4: 28.00 s | E4: 00:30:20 | F4: 40.5 | G4: 65 | H4: 30 | I4: 1 | J4: =IF(I4=1,10,IF(I4=2,8,IF(I4=3,6,IF(I4=4,5,IF(I4=5,4,IF(I4=6,3,IF(I4=7,2,IF(I4=8,1,0)))))))) -> 10
A5: Sebastian | B5: 27.16 | C5: 55 | D5: 28.10 s | E5: 00:30:28 | F5: 40.35 | G5: 65 | H5: 20 | I5: 4 | J5: =IF(I5=1,10,IF(I5=2,8,IF(I5=3,6,IF(I5=4,5,IF(I5=5,4,IF(I5=6,3,IF(I5=7,2,IF(I5=8,1,0)))))))) -> 5
A6: Thomas | B6: 27.24 | C6: 24 | D6: 28.10 s | E6: 00:30:28 | F6: 40.63 | G6: 65 | H6: 20 | I6: -5 | J6: 0
A7: Simon | B7: 27.04 | C7: 45 | D7: 28.02 s | E7: 00:30:22 | F7: 40.47 | G7: 65 | I7: 2 | J7: 8
A8: Siegfried | B8: 26.89 | C8: 19 | D8: 28.02 s | E8: 00:30:22 | F8: 40.47 | G8: 65 | I8: 3 | J8: 6
A9: Christian | B9: 27.81 | C9: 42 | D9: 28.93 s | E9: 00:30:25 | F9: 39.25 | G9: 63 | I9: 7 | J9: 2
A10: Richard | B10: 27.78 | C10: 35 | D10: 29.16 s | E10: 00:30:40 | F10: 38.88 | G10: 63 | I10: 8 | J10: 1
A11: Anna | J11: 0
A12: Carlos | J12: 0
A13: Jens | B13: 27.45 | C13: 64 | D13: 28.50 s | E13: 00:30:26 | F13: 39.79 | G13: 64 | I13: 6 | J13: 3

Sheet Rennen 4
A1: Rennnstatistik | B1: 2015-09-26
A3: Name | B3: Beste Rundenzeit | C3: Bestzeit in Runde | D3: Mittlere Rundenzeit | E3: Gesamt- fahrzeit | F3: Mittlere Geschwindigkeit | G3: Runden | H3: Zusatzgewicht | I3: Platzierung | J3: Punkte
A4: Marcel | B4: 26.99 | C4: 60 | D4: 27.25 | E4: 0.02460648148 | F4: 41.61 | G4: 78 | H4: 30 | I4: 1 | J4: =IF(I4=1,10,IF(I4=2,8,IF(I4=3,6,IF(I4=4,5,IF(I4=5,4,IF(I4=6,3,IF(I4=7,2,IF(I4=8,1,0)))))))) -> 10
A5: Sebastian | B5: 27.15 | C5: 51 | D5: 27.55 | E5: 0.02487268519 | F5: 41.16 | G5: 78 | H5: 20 | I5: 2 | J5: =IF(I5=1,10,IF(I5=2,8,IF(I5=3,6,IF(I5=4,5,IF(I5=5,4,IF(I5=6,3,IF(I5=7,2,IF(I5=8,1,0)))))))) -> 8
A6: Thomas | B6: 27.09 | C6: 37 | D6: 27.54 | E6: 00:35:50 | F6: 41.18 | G6: 78 | H6: 10 | I6: 3 | J6: 6
A7: Simon | H7: 10 | J7: 0
A8: Siegfried | B8: 27.37 | C8: 22 | D8: 27.79 | E8: 0.02479166667 | F8: 40.81 | G8: 77 | I8: 4 | J8: 5
A9: Christian | B9: 27.72 | C9: 24 | D9: 28.22 | E9: 0.02486111111 | F9: 40.18 | G9: 76 | I9: 5 | J9: 4
A10: Richard | B10: 27.86 | C10: 64 | D10: 28.77 | E10: 0.02465277778 | F10: 39.41 | G10: 74 | I10: 7 | J10: 2
A11: Anna | J11: 0
A12: Carlos | B12: 27.72 | C12: 54 | D12: 28.57 | E12: 00:35:45 | F12: 39.7 | G12: 75 | I12: 6 | J12: 3
A13: Jens | J13: 0

Sheet Rennen 5
A1: Rennnstatistik | B1: 2015-10-24
A3: Name | B3: Beste Rundenzeit | C3: Bestzeit in Runde | D3: Mittlere Rundenzeit | E3: Gesamt- fahrzeit | F3: Mittlere Geschwindigkeit | G3: Runden | H3: Zusatzgewicht | I3: Platzierung | J3: Punkte
A4: Marcel | B4: 27.078 | C4: 55 | D4: 27.302 | G4: 66 | H4: 30 | I4: -1 | J4: =IF(I4=1,10,IF(I4=2,8,IF(I4=3,6,IF(I4=4,5,IF(I4=5,4,IF(I4=6,3,IF(I4=7,2,IF(I4=8,1,0)))))))) -> 0
A5: Sebastian | H5: 20 | J5: =IF(I5=1,10,IF(I5=2,8,IF(I5=3,6,IF(I5=4,5,IF(I5=5,4,IF(I5=6,3,IF(I5=7,2,IF(I5=8,1,0)))))))) -> 0
A6: Thomas | B6: 27.323 | C6: 46 | D6: 27.61 | G6: 66 | H6: 10 | I6: 4 | J6: 5
A7: Simon | B7: 27.063 | C7: 49 | D7: 27.492 | G7: 66 | I7: 3 | J7: 6
A8: Siegfried | B8: 27.194 | C8: 60 | D8: 27.484 | G8: 66 | I8: 2 | J8: 8
A9: Christian | B9: 27.641 | C9: 50 | D9: 28.063 | G9: 64 | I9: -8 | J9: 0
A10: Richard | B10: 27.441 | C10: 30 | D10: 27.881 | G10: 65 | I10: 5 | J10: 4
A11: Anna | B11: 28.02 | C11: 11 | D11: 29.703 | G11: 51 | I11: 9 | J11: 0
A12: Carlos | B12: 27.54 | C12: 42 | D12: 28.038 | G12: 65 | I12: 6 | J12: 3
A13: Jens | B13: 27.49 | C13: 64 | D13: 27.969 | G13: 64 | I13: 7 | J13: 2
A14: Mateo | B14: 27.845 | C14: 11 | D14: 29.703 | G14: 63 | I14: 9 | J14: 0

Sheet Einzelauswertung
A4: Simon
B5: Beste Rundenzeit | C5: Bestzeit in Runde | D5: Mittlere Rundenzeit | E5: Gesamt- fahrzeit | F5: Mittlere Geschwindigkeit | G5: Runden | H5: Zusatzgewicht | I5: Platzierung | J5: Punkte
A6: Rennen 1 | B6: =IF(SUMIF('Rennen 1'!$A$4:$J$13,$A$4,'Rennen 1'!$B$4:$B$13)=0,"",SUMIF('Rennen 1'!$A$4:$J$13,$A$4,'Rennen 1'!$B$4:$B$13)) -> 27.04 | C6: =IF(SUMIF('Rennen 1'!$A$4:$J$13,$A$4,'Rennen 1'!$C$4:$C$13)=0,"",SUMIF('Rennen 1'!$A$4:$J$13,$A$4,'Rennen 1'!$C$4:$C$13)) -> 30 | D6: =IF(SUMIF('Rennen 1'!$A$4:$J$13,$A$4,'Rennen 1'!$D$4:$D$13)=0,"",SUMIF('Rennen 1'!$A$4:$J$13,$A$4,'Rennen 1'!$D$4:$D$13)) -> 27.83 | E6: =IF(SUMIF('Rennen 1'!$A$4:$J$13,$A$4,'Rennen 1'!$E$4:$E$13)=0,"",SUMIF('Rennen 1'!$A$4:$J$13,$A$4,'Rennen 1'!$E$4:$E$13)) -> 00:35:17 | F6: =IF(SUMIF('Rennen 1'!$A$4:$J$13,$A$4,'Rennen 1'!$F$4:$F$13)=0,"",SUMIF('Rennen 1'!$A$4:$J$13,$A$4,'Rennen 1'!$F$4:$F$13)) -> 40.75 | G6: =IF(SUMIF('Rennen 1'!$A$4:$J$13,$A$4,'Rennen 1'!$G$4:$G$13)=0,"",SUMIF('Rennen 1'!$A$4:$J$13,$A$4,'Rennen 1'!$G$4:$G$13)) -> 76 | H6: =IF(SUMIF('Rennen 1'!$A$4:$J$13,$A$4,'Rennen 1'!$H$4:$H$13)=0,"",SUMIF('Rennen 1'!$A$4:$J$13,$A$4,'Rennen 1'!$H$4:$H$13)) ->  | I6: =IF(SUMIF('Rennen 1'!$A$4:$J$13,$A$4,'Rennen 1'!$I$4:$I$13)=0,"",SUMIF('Rennen 1'!$A$4:$J$13,$A$4,'Rennen 1'!$I$4:$I$13)) -> 4 | J6: =IF(SUMIF('Rennen 1'!$A$4:$J$13,$A$4,'Rennen 1'!$J$4:$J$13)=0,"",SUMIF('Rennen 1'!$A$4:$J$13,$A$4,'Rennen 1'!$J$4:$J$13)) -> 5
A7: Rennen 2 | B7: =IF(SUMIF('Rennen 2'!$A$4:$J$13,$A$4,'Rennen 2'!$B$4:$B$13)=0,"",SUMIF('Rennen 2'!$A$4:$J$13,$A$4,'Rennen 2'!$B$4:$B$13)) -> 27.12 | C7: =IF(SUMIF('Rennen 2'!$A$4:$J$13,$A$4,'Rennen 2'!$C$4:$C$13)=0,"",SUMIF('Rennen 2'!$A$4:$J$13,$A$4,'Rennen 2'!$C$4:$C$13)) -> 18 | D7: =IF(SUMIF('Rennen 2'!$A$4:$J$13,$A$4,'Rennen 2'!$D$4:$D$13)=0,"",SUMIF('Rennen 2'!$A$4:$J$13,$A$4,'Rennen 2'!$D$4:$D$13)) -> 28.05 | E7: =IF(SUMIF('Rennen 2'!$A$4:$J$13,$A$4,'Rennen 2'!$E$4:$E$13)=0,"",SUMIF('Rennen 2'!$A$4:$J$13,$A$4,'Rennen 2'!$E$4:$E$13)) -> 1.675694444 | F7: =IF(SUMIF('Rennen 2'!$A$4:$J$13,$A$4,'Rennen 2'!$F$4:$F$13)=0,"",SUMIF('Rennen 2'!$A$4:$J$13,$A$4,'Rennen 2'!$F$4:$F$13)) -> 40.42 | G7: =IF(SUMIF('Rennen 2'!$A$4:$J$13,$A$4,'Rennen 2'!$G$4:$G$13)=0,"",SUMIF('Rennen 2'!$A$4:$J$13,$A$4,'Rennen 2'!$G$4:$G$13)) -> 86 | H7: =IF(SUMIF('Rennen 2'!$A$4:$J$13,$A$4,'Rennen 2'!$H$4:$H$13)=0,"",SUMIF('Rennen 2'!$A$4:$J$13,$A$4,'Rennen 2'!$H$4:$H$13)) ->  | I7: =IF(SUMIF('Rennen 2'!$A$4:$J$13,$A$4,'Rennen 2'!$I$4:$I$13)=0,"",SUMIF('Rennen 2'!$A$4:$J$13,$A$4,'Rennen 2'!$I$4:$I$13)) -> 4 | J7: =IF(SUMIF('Rennen 2'!$A$4:$J$13,$A$4,'Rennen 2'!$J$4:$J$13)=0,"",SUMIF('Rennen 2'!$A$4:$J$13,$A$4,'Rennen 2'!$J$4:$J$13)) -> 5
A8: Rennen 3 | B8: =IF(SUMIF('Rennen 3'!$A$4:$J$13,$A$4,'Rennen 3'!$B$4:$B$13)=0,"",SUMIF('Rennen 3'!$A$4:$J$13,$A$4,'Rennen 3'!$B$4:$B$13)) -> 27.04 | C8: =IF(SUMIF('Rennen 3'!$A$4:$J$13,$A$4,'Rennen 3'!$C$4:$C$13)=0,"",SUMIF('Rennen 3'!$A$4:$J$13,$A$4,'Rennen 3'!$C$4:$C$13)) -> 45 | D8: =IF(SUMIF('Rennen 3'!$A$4:$J$13,$A$4,'Rennen 3'!$D$4:$D$13)=0,"",SUMIF('Rennen 3'!$A$4:$J$13,$A$4,'Rennen 3'!$D$4:$D$13)) -> 28.02 | E8: =IF(SUMIF('Rennen 3'!$A$4:$J$13,$A$4,'Rennen 3'!$E$4:$E$13)=0,"",SUMIF('Rennen 3'!$A$4:$J$13,$A$4,'Rennen 3'!$E$4:$E$13)) -> 00:30:22 | F8: =IF(SUMIF('Rennen 3'!$A$4:$J$13,$A$4,'Rennen 3'!$F$4:$F$13)=0,"",SUMIF('Rennen 3'!$A$4:$J$13,$A$4,'Rennen 3'!$F$4:$F$13)) -> 40.47 | G8: =IF(SUMIF('Rennen 3'!$A$4:$J$13,$A$4,'Rennen 3'!$G$4:$G$13)=0,"",SUMIF('Rennen 3'!$A$4:$J$13,$A$4,'Rennen 3'!$G$4:$G$13)) -> 65 | H8: =IF(SUMIF('Rennen 3'!$A$4:$J$13,$A$4,'Rennen 3'!$H$4:$H$13)=0,"",SUMIF('Rennen 3'!$A$4:$J$13,$A$4,'Rennen 3'!$H$4:$H$13)) ->  | I8: =IF(SUMIF('Rennen 3'!$A$4:$J$13,$A$4,'Rennen 3'!$I$4:$I$13)=0,"",SUMIF('Rennen 3'!$A$4:$J$13,$A$4,'Rennen 3'!$I$4:$I$13)) -> 2 | J8: =IF(SUMIF('Rennen 3'!$A$4:$J$13,$A$4,'Rennen 3'!$J$4:$J$13)=0,"",SUMIF('Rennen 3'!$A$4:$J$13,$A$4,'Rennen 3'!$J$4:$J$13)) -> 8
A9: Rennen 4 | B9: =IF(SUMIF('Rennen 4'!$A$4:$J$13,$A$4,'Rennen 4'!$B$4:$B$13)=0,"",SUMIF('Rennen 4'!$A$4:$J$13,$A$4,'Rennen 4'!$B$4:$B$13)) ->  | C9: =IF(SUMIF('Rennen 4'!$A$4:$J$13,$A$4,'Rennen 4'!$C$4:$C$13)=0,"",SUMIF('Rennen 4'!$A$4:$J$13,$A$4,'Rennen 4'!$C$4:$C$13)) ->  | D9: =IF(SUMIF('Rennen 4'!$A$4:$J$13,$A$4,'Rennen 4'!$D$4:$D$13)=0,"",SUMIF('Rennen 4'!$A$4:$J$13,$A$4,'Rennen 4'!$D$4:$D$13)) ->  | E9: =IF(SUMIF('Rennen 4'!$A$4:$J$13,$A$4,'Rennen 4'!$E$4:$E$13)=0,"",SUMIF('Rennen 4'!$A$4:$J$13,$A$4,'Rennen 4'!$E$4:$E$13)) ->  | F9: =IF(SUMIF('Rennen 4'!$A$4:$J$13,$A$4,'Rennen 4'!$F$4:$F$13)=0,"",SUMIF('Rennen 4'!$A$4:$J$13,$A$4,'Rennen 4'!$F$4:$F$13)) ->  | G9: =IF(SUMIF('Rennen 4'!$A$4:$J$13,$A$4,'Rennen 4'!$G$4:$G$13)=0,"",SUMIF('Rennen 4'!$A$4:$J$13,$A$4,'Rennen 4'!$G$4:$G$13)) ->  | H9: =IF(SUMIF('Rennen 4'!$A$4:$J$13,$A$4,'Rennen 4'!$H$4:$H$13)=0,"",SUMIF('Rennen 4'!$A$4:$J$13,$A$4,'Rennen 4'!$H$4:$H$13)) -> 10 | I9: =IF(SUMIF('Rennen 4'!$A$4:$J$13,$A$4,'Rennen 4'!$I$4:$I$13)=0,"",SUMIF('Rennen 4'!$A$4:$J$13,$A$4,'Rennen 4'!$I$4:$I$13)) ->  | J9: =IF(SUMIF('Rennen 4'!$A$4:$J$13,$A$4,'Rennen 4'!$J$4:$J$13)=0,"",SUMIF('Rennen 4'!$A$4:$J$13,$A$4,'Rennen 4'!$J$4:$J$13)) -> 
A10: Rennen 5 | B10: =IF(SUMIF('Rennen 5'!$A$4:$J$13,$A$4,'Rennen 5'!$B$4:$B$13)=0,"",SUMIF('Rennen 5'!$A$4:$J$13,$A$4,'Rennen 5'!$B$4:$B$13)) -> 27.063 | C10: =IF(SUMIF('Rennen 5'!$A$4:$J$13,$A$4,'Rennen 5'!$C$4:$C$13)=0,"",SUMIF('Rennen 5'!$A$4:$J$13,$A$4,'Rennen 5'!$C$4:$C$13)) -> 49 | D10: =IF(SUMIF('Rennen 5'!$A$4:$J$13,$A$4,'Rennen 5'!$D$4:$D$13)=0,"",SUMIF('Rennen 5'!$A$4:$J$13,$A$4,'Rennen 5'!$D$4:$D$13)) -> 27.492 | E10: =IF(SUMIF('Rennen 5'!$A$4:$J$13,$A$4,'Rennen 5'!$E$4:$E$13)=0,"",SUMIF('Rennen 5'!$A$4:$J$13,$A$4,'Rennen 5'!$E$4:$E$13)) ->  | F10: =IF(SUMIF('Rennen 5'!$A$4:$J$13,$A$4,'Rennen 5'!$F$4:$F$13)=0,"",SUMIF('Rennen 5'!$A$4:$J$13,$A$4,'Rennen 5'!$F$4:$F$13)) ->  | G10: =IF(SUMIF('Rennen 5'!$A$4:$J$13,$A$4,'Rennen 5'!$G$4:$G$13)=0,"",SUMIF('Rennen 5'!$A$4:$J$13,$A$4,'Rennen 5'!$G$4:$G$13)) -> 66 | H10: =IF(SUMIF('Rennen 5'!$A$4:$J$13,$A$4,'Rennen 5'!$H$4:$H$13)=0,"",SUMIF('Rennen 5'!$A$4:$J$13,$A$4,'Rennen 5'!$H$4:$H$13)) ->  | I10: =IF(SUMIF('Rennen 5'!$A$4:$J$13,$A$4,'Rennen 5'!$I$4:$I$13)=0,"",SUMIF('Rennen 5'!$A$4:$J$13,$A$4,'Rennen 5'!$I$4:$I$13)) -> 3 | J10: =IF(SUMIF('Rennen 5'!$A$4:$J$13,$A$4,'Rennen 5'!$J$4:$J$13)=0,"",SUMIF('Rennen 5'!$A$4:$J$13,$A$4,'Rennen 5'!$J$4:$J$13)) -> 6
A11: Min | B11: =IF(MIN(B6:B10)=0,"",MIN(B6:B10)) -> 27.04 | C11: =IF(MIN(C6:C10)=0,"",MIN(C6:C10)) -> 18 | D11: 27.492 | E11: 00:30:22 | F11: 40.42 | G11: 65 | H11: 10 | I11: 2
A12: Max | B12: =IF(MAX(B6:B10)=0,"",MAX(B6:B10)) -> 27.12 | C12: =IF(MAX(C6:C10)=0,"",MAX(C6:C10)) -> 49 | D12: 28.05 | E12: 1.675694444 | F12: 40.75 | G12: 86 | H12: 10 | I12: 4
C13: =SUM(C6:C10) -> 142 | E13: =SUM(E6:E10) -> 1.721284722 | J13: =SUM(J6:J10) -> 24

Sheet AUSWERTUNG RENNEN
A1: Gesamtwertung | N1: Punktetabelle
A2: Rennen 1 | B2: ='Rennen 1'!$B$1 -> 2015-04-25 | M2: 10 Platz | N2: Anna | O2: =SUMIF($A$3:$J$66,N2,$J$3:$J$66) -> 0 Punkte
A3: ='Rennen 1'!A3 -> Name | B3: ='Rennen 1'!B3 -> Beste Rundenzeit | C3: ='Rennen 1'!C3 -> Bestzeit in Runde | D3: ='Rennen 1'!D3 -> Mittlere Rundenzeit | E3: ='Rennen 1'!E3 -> Gesamt- fahrzeit | F3: ='Rennen 1'!F3 -> Mittlere Geschwindigkeit | G3: ='Rennen 1'!G3 -> Runden | H3: ='Rennen 1'!H3 -> Zusatzgewicht | I3: ='Rennen 1'!I3 -> Platzierung | J3: ='Rennen 1'!J3 -> Punkte | M3: 9 Platz | N3: Carlos | O3: 7 Punkte
A4: =IF('Rennen 1'!A4>0,'Rennen 1'!A4,"") -> Marcel | B4: ='Rennen 1'!B4 -> 26.32 | C4: ='Rennen 1'!C4 -> 71 | D4: ='Rennen 1'!D4 -> 26.62 | E4: ='Rennen 1'!E4 -> 00:35:02 | F4: ='Rennen 1'!F4 -> 42.61 | G4: ='Rennen 1'!G4 -> 79 | H4: ='Rennen 1'!H4 -> 0 | I4: ='Rennen 1'!I4 -> 1 | J4: ='Rennen 1'!J4 -> 10 | M4: 8 Platz | N4: Jens | O4: 8 Punkte
A5: =IF('Rennen 1'!A5>0,'Rennen 1'!A5,"") -> Sebastian | B5: ='Rennen 1'!B5 -> 26.78 | C5: ='Rennen 1'!C5 -> 76 | D5: ='Rennen 1'!D5 -> 27.35 | E5: ='Rennen 1'!E5 -> 00:35:06 | F5: ='Rennen 1'!F5 -> 41.46 | G5: ='Rennen 1'!G5 -> 77 | H5: ='Rennen 1'!H5 -> 0 | I5: ='Rennen 1'!I5 -> 2 | J5: ='Rennen 1'!J5 -> 8 | M5: 7 Platz | N5: Richard | O5: 9 Punkte
A6: =IF('Rennen 1'!A6>0,'Rennen 1'!A6,"") -> Thomas | B6: ='Rennen 1'!B6 -> 26.82 | C6: ='Rennen 1'!C6 -> 9 | D6: ='Rennen 1'!D6 -> 27.4 | E6: ='Rennen 1'!E6 -> 00:35:11 | F6: ='Rennen 1'!F6 -> 41.38 | G6: ='Rennen 1'!G6 -> 77 | H6: ='Rennen 1'!H6 -> 0 | I6: ='Rennen 1'!I6 -> 3 | J6: ='Rennen 1'!J6 -> 6 | M6: 6 Platz | N6: Christian | O6: 11 Punkte
A7: =IF('Rennen 1'!A7>0,'Rennen 1'!A7,"") -> Simon | B7: ='Rennen 1'!B7 -> 27.04 | C7: ='Rennen 1'!C7 -> 30 | D7: ='Rennen 1'!D7 -> 27.83 | E7: ='Rennen 1'!E7 -> 00:35:17 | F7: ='Rennen 1'!F7 -> 40.75 | G7: ='Rennen 1'!G7 -> 76 | H7: ='Rennen 1'!H7 -> 0 | I7: ='Rennen 1'!I7 -> 4 | J7: ='Rennen 1'!J7 -> 5 | M7: 5 Platz | N7: Siegfried | O7: 23 Punkte
A8: =IF('Rennen 1'!A8>0,'Rennen 1'!A8,"") -> Siegfried | B8: ='Rennen 1'!B8 -> 27.19 | C8: ='Rennen 1'!C8 -> 6 | D8: ='Rennen 1'!D8 -> 27.87 | E8: ='Rennen 1'!E8 -> 00:35:19 | F8: ='Rennen 1'!F8 -> 40.68 | G8: ='Rennen 1'!G8 -> 76 | H8: ='Rennen 1'!H8 -> 0 | I8: ='Rennen 1'!I8 -> 5 | J8: ='Rennen 1'!J8 -> 4 | M8: 4 Platz | N8: Simon | O8: 24 Punkte
A9: =IF('Rennen 1'!A9>0,'Rennen 1'!A9,"") -> Christian | B9: ='Rennen 1'!B9 -> 27.74 | C9: ='Rennen 1'!C9 -> 15 | D9: ='Rennen 1'!D9 -> 28.66 | E9: ='Rennen 1'!E9 -> 00:35:23 | F9: ='Rennen 1'!F9 -> 39.57 | G9: ='Rennen 1'!G9 -> 74 | H9: ='Rennen 1'!H9 -> 0 | I9: ='Rennen 1'!I9 -> 6 | J9: ='Rennen 1'!J9 -> 3 | M9: 3 Platz | N9: Thomas | O9: 25 Punkte
A10: =IF('Rennen 1'!A10>0,'Rennen 1'!A10,"") -> Richard | B10: ='Rennen 1'!B10 -> 27.97 | C10: ='Rennen 1'!C10 -> 0 | D10: ='Rennen 1'!D10 -> 29.58 | E10: ='Rennen 1'!E10 -> 00:35:03 | F10: ='Rennen 1'!F10 -> 38.33 | G10: ='Rennen 1'!G10 -> 71 | H10: ='Rennen 1'!H10 -> 0 | I10: ='Rennen 1'!I10 -> 7 | J10: ='Rennen 1'!J10 -> 2 | M10: 2 Platz | N10: Sebastian | O10: 27 Punkte
A11: =IF('Rennen 1'!A11>0,'Rennen 1'!A11,"") -> Anna | B11: ='Rennen 1'!B11 -> 0 | C11: ='Rennen 1'!C11 -> 0 | D11: ='Rennen 1'!D11 -> 0 | E11: ='Rennen 1'!E11 -> 00:00:00 | F11: ='Rennen 1'!F11 -> 0 | G11: ='Rennen 1'!G11 -> 0 | H11: ='Rennen 1'!H11 -> 0 | I11: ='Rennen 1'!I11 -> 0 | J11: ='Rennen 1'!J11 -> 0 | M11: 1 Platz | N11: Marcel | O11: 40 Punkte
A12: =IF('Rennen 1'!A12>0,'Rennen 1'!A12,"") -> Carlos | B12: ='Rennen 1'!B12 -> 0 | C12: ='Rennen 1'!C12 -> 0 | D12: ='Rennen 1'!D12 -> 0 | E12: ='Rennen 1'!E12 -> 00:00:00 | F12: ='Rennen 1'!F12 -> 0 | G12: ='Rennen 1'!G12 -> 0 | H12: ='Rennen 1'!H12 -> 0 | I12: ='Rennen 1'!I12 -> 0 | J12: ='Rennen 1'!J12 -> 0
A13: =IF('Rennen 1'!A13>0,'Rennen 1'!A13,"") -> Jens | B13: ='Rennen 1'!B13 -> 0 | C13: ='Rennen 1'!C13 -> 0 | D13: ='Rennen 1'!D13 -> 0 | E13: ='Rennen 1'!E13 -> 00:00:00 | F13: ='Rennen 1'!F13 -> 0 | G13: ='Rennen 1'!G13 -> 0 | H13: ='Rennen 1'!H13 -> 0 | I13: ='Rennen 1'!I13 -> 0 | J13: ='Rennen 1'!J13 -> 0
A16: Rennen 2 | B16: ='Rennen 2'!$B$1 -> 2015-05-30
A17: ='Rennen 2'!A3 -> Name | B17: ='Rennen 2'!B3 -> Beste Rundenzeit | C17: ='Rennen 2'!C3 -> Bestzeit in Runde | D17: ='Rennen 2'!D3 -> Mittlere Rundenzeit | E17: ='Rennen 2'!E3 -> Gesamt- fahrzeit | F17: ='Rennen 2'!F3 -> Mittlere Geschwindigkeit | G17: ='Rennen 2'!G3 -> Runden | H17: ='Rennen 2'!H3 -> Zusatzgewicht | I17: ='Rennen 2'!I3 -> Platzierung | J17: ='Rennen 2'!J3 -> Punkte
A18: =IF('Rennen 2'!A4>0,'Rennen 2'!A4,"") -> Marcel | B18: ='Rennen 2'!B4 -> 26.98 | C18: ='Rennen 2'!C4 -> 63 | D18: ='Rennen 2'!D4 -> 27.28 | E18: ='Rennen 2'!E4 -> 1.666666667 | F18: ='Rennen 2'!F4 -> 41.57 | G18: ='Rennen 2'!G4 -> 88 | H18: ='Rennen 2'!H4 -> 30 | I18: ='Rennen 2'!I4 -> 1 | J18: ='Rennen 2'!J4 -> 10
A19: =IF('Rennen 2'!A5>0,'Rennen 2'!A5,"") -> Sebastian | B19: ='Rennen 2'!B5 -> 27.49 | C19: ='Rennen 2'!C5 -> 5 | D19: ='Rennen 2'!D5 -> 28.05 | E19: ='Rennen 2'!E5 -> 1.675694444 | F19: ='Rennen 2'!F5 -> 40.43 | G19: ='Rennen 2'!G5 -> 86 | H19: ='Rennen 2'!H5 -> 20 | I19: ='Rennen 2'!I5 -> 3 | J19: ='Rennen 2'!J5 -> 6
A20: =IF('Rennen 2'!A6>0,'Rennen 2'!A6,"") -> Thomas | B20: ='Rennen 2'!B6 -> 26.94 | C20: ='Rennen 2'!C6 -> 62 | D20: ='Rennen 2'!D6 -> 27.4 | E20: ='Rennen 2'!E6 -> 1.675694444 | F20: ='Rennen 2'!F6 -> 41.39 | G20: ='Rennen 2'!G6 -> 88 | H20: ='Rennen 2'!H6 -> 10 | I20: ='Rennen 2'!I6 -> 2 | J20: ='Rennen 2'!J6 -> 8
A21: =IF('Rennen 2'!A7>0,'Rennen 2'!A7,"") -> Simon | B21: ='Rennen 2'!B7 -> 27.12 | C21: ='Rennen 2'!C7 -> 18 | D21: ='Rennen 2'!D7 -> 28.05 | E21: ='Rennen 2'!E7 -> 1.675694444 | F21: ='Rennen 2'!F7 -> 40.42 | G21: ='Rennen 2'!G7 -> 86 | H21: ='Rennen 2'!H7 -> 0 | I21: ='Rennen 2'!I7 -> 4 | J21: ='Rennen 2'!J7 -> 5
A22: =IF('Rennen 2'!A8>0,'Rennen 2'!A8,"") -> Siegfried | B22: ='Rennen 2'!B8 -> 27.29 | C22: ='Rennen 2'!C8 -> 46 | D22: ='Rennen 2'!D8 -> 28.06 | E22: ='Rennen 2'!E8 -> 1.676388889 | F22: ='Rennen 2'!F8 -> 40.42 | G22: ='Rennen 2'!G8 -> 86 | H22: ='Rennen 2'!H8 -> 0 | I22: ='Rennen 2'!I8 -> S5 | J22: ='Rennen 2'!J8 -> 0
A23: =IF('Rennen 2'!A9>0,'Rennen 2'!A9,"") -> Christian | B23: ='Rennen 2'!B9 -> 27.68 | C23: ='Rennen 2'!C9 -> 8 | D23: ='Rennen 2'!D9 -> 28.59 | E23: ='Rennen 2'!E9 -> 1.66875 | F23: ='Rennen 2'!F9 -> 39.67 | G23: ='Rennen 2'!G9 -> 84 | H23: ='Rennen 2'!H9 -> 0 | I23: ='Rennen 2'!I9 -> 7 | J23: ='Rennen 2'!J9 -> 2
A24: =IF('Rennen 2'!A10>0,'Rennen 2'!A10,"") -> Richard | B24: ='Rennen 2'!B10 -> 27.81 | C24: ='Rennen 2'!C10 -> 7 | D24: ='Rennen 2'!D10 -> 28.74 | E24: ='Rennen 2'!E10 -> 1.679166667 | F24: ='Rennen 2'!F10 -> 39.46 | G24: ='Rennen 2'!G10 -> 84 | H24: ='Rennen 2'!H10 -> 0 | I24: ='Rennen 2'!I10 -> -9 | J24: ='Rennen 2'!J10 -> 0
A25: =IF('Rennen 2'!A11>0,'Rennen 2'!A11,"") -> Anna | B25: ='Rennen 2'!B11 -> 27.92 | C25: ='Rennen 2'!C11 -> 21 | D25: ='Rennen 2'!D11 -> 29.53 | E25: ='Rennen 2'!E11 -> 1.601388889 | F25: ='Rennen 2'!F11 -> 38.4 | G25: ='Rennen 2'!G11 -> 78 | H25: ='Rennen 2'!H11 -> 0 | I25: ='Rennen 2'!I11 -> 10 | J25: ='Rennen 2'!J11 -> 0
A26: =IF('Rennen 2'!A12>0,'Rennen 2'!A12,"") -> Carlos | B26: ='Rennen 2'!B12 -> 27.6 | C26: ='Rennen 2'!C12 -> 69 | D26: ='Rennen 2'!D12 -> 0 | E26: ='Rennen 2'!E12 -> 1.674305556 | F26: ='Rennen 2'!F12 -> 39.56 | G26: ='Rennen 2'!G12 -> 84 | H26: ='Rennen 2'!H12 -> 0 | I26: ='Rennen 2'!I12 -> 8 | J26: ='Rennen 2'!J12 -> 1
A27: =IF('Rennen 2'!A13>0,'Rennen 2'!A13,"") -> Jens | B27: ='Rennen 2'!B13 -> 27.32 | C27: ='Rennen 2'!C13 -> 23 | D27: ='Rennen 2'!D13 -> 28.58 | E27: ='Rennen 2'!E13 -> 1.688194444 | F27: ='Rennen 2'!F13 -> 39.68 | G27: ='Rennen 2'!G13 -> 85 | H27: ='Rennen 2'!H13 -> 0 | I27: ='Rennen 2'!I13 -> 6 | J27: ='Rennen 2'!J13 -> 3
A29: Rennen 3 | B29: ='Rennen 3'!$B$1 -> 2015-06-20
A30: ='Rennen 3'!A4 -> Marcel | B30: ='Rennen 3'!B4 -> 27.07 | C30: ='Rennen 3'!C4 -> 33 | D30: ='Rennen 3'!D4 -> 28 | E30: ='Rennen 3'!E4 -> 00:30:20 | F30: ='Rennen 3'!F4 -> 40.5 | G30: ='Rennen 3'!G4 -> 65 | H30: ='Rennen 3'!H4 -> 30 | I30: ='Rennen 3'!I4 -> 1 | J30: ='Rennen 3'!J4 -> 10
A31: ='Rennen 3'!A5 -> Sebastian | B31: ='Rennen 3'!B5 -> 27.16 | C31: ='Rennen 3'!C5 -> 55 | D31: ='Rennen 3'!D5 -> 28.1 | E31: ='Rennen 3'!E5 -> 00:30:28 | F31: ='Rennen 3'!F5 -> 40.35 | G31: ='Rennen 3'!G5 -> 65 | H31: ='Rennen 3'!H5 -> 20 | I31: ='Rennen 3'!I5 -> 4 | J31: ='Rennen 3'!J5 -> 5
A32: ='Rennen 3'!A6 -> Thomas | B32: ='Rennen 3'!B6 -> 27.24 | C32: ='Rennen 3'!C6 -> 24 | D32: ='Rennen 3'!D6 -> 28.1 | E32: ='Rennen 3'!E6 -> 00:30:28 | F32: ='Rennen 3'!F6 -> 40.63 | G32: ='Rennen 3'!G6 -> 65 | H32: ='Rennen 3'!H6 -> 20 | I32: ='Rennen 3'!I6 -> -5 | J32: ='Rennen 3'!J6 -> 0
A33: ='Rennen 3'!A7 -> Simon | B33: ='Rennen 3'!B7 -> 27.04 | C33: ='Rennen 3'!C7 -> 45 | D33: ='Rennen 3'!D7 -> 28.02 | E33: ='Rennen 3'!E7 -> 00:30:22 | F33: ='Rennen 3'!F7 -> 40.47 | G33: ='Rennen 3'!G7 -> 65 | H33: ='Rennen 3'!H7 -> 0 | I33: ='Rennen 3'!I7 -> 2 | J33: ='Rennen 3'!J7 -> 8
A34: ='Rennen 3'!A8 -> Siegfried | B34: ='Rennen 3'!B8 -> 26.89 | C34: ='Rennen 3'!C8 -> 19 | D34: ='Rennen 3'!D8 -> 28.02 | E34: ='Rennen 3'!E8 -> 00:30:22 | F34: ='Rennen 3'!F8 -> 40.47 | G34: ='Rennen 3'!G8 -> 65 | H34: ='Rennen 3'!H8 -> 0 | I34: ='Rennen 3'!I8 -> 3 | J34: ='Rennen 3'!J8 -> 6
A35: ='Rennen 3'!A9 -> Christian | B35: ='Rennen 3'!B9 -> 27.81 | C35: ='Rennen 3'!C9 -> 42 | D35: ='Rennen 3'!D9 -> 28.93 | E35: ='Rennen 3'!E9 -> 00:30:25 | F35: ='Rennen 3'!F9 -> 39.25 | G35: ='Rennen 3'!G9 -> 63 | H35: ='Rennen 3'!H9 -> 0 | I35: ='Rennen 3'!I9 -> 7 | J35: ='Rennen 3'!J9 -> 2
A36: ='Rennen 3'!A10 -> Richard | B36: ='Rennen 3'!B10 -> 27.78 | C36: ='Rennen 3'!C10 -> 35 | D36: ='Rennen 3'!D10 -> 29.16 | E36: ='Rennen 3'!E10 -> 00:30:40 | F36: ='Rennen 3'!F10 -> 38.88 | G36: ='Rennen 3'!G10 -> 63 | H36: ='Rennen 3'!H10 -> 0 | I36: ='Rennen 3'!I10 -> 8 | J36: ='Rennen 3'!J10 -> 1
A37: ='Rennen 3'!A11 -> Anna | B37: ='Rennen 3'!B11 -> 0 | C37: ='Rennen 3'!C11 -> 0 | D37: ='Rennen 3'!D11 -> 0 | E37: ='Rennen 3'!E11 -> 00:00:00 | F37: ='Rennen 3'!F11 -> 0 | G37: ='Rennen 3'!G11 -> 0 | H37: ='Rennen 3'!H11 -> 0 | I37: ='Rennen 3'!I11 -> 0 | J37: ='Rennen 3'!J11 -> 0
A38: ='Rennen 3'!A12 -> Carlos | B38: ='Rennen 3'!B12 -> 0 | C38: ='Rennen 3'!C12 -> 0 | D38: ='Rennen 3'!D12 -> 0 | E38: ='Rennen 3'!E12 -> 00:00:00 | F38: ='Rennen 3'!F12 -> 0 | G38: ='Rennen 3'!G12 -> 0 | H38: ='Rennen 3'!H12 -> 0 | I38: ='Rennen 3'!I12 -> 0 | J38: ='Rennen 3'!J12 -> 0
A39: ='Rennen 3'!A13 -> Jens | B39: ='Rennen 3'!B13 -> 27.45 | C39: ='Rennen 3'!C13 -> 64 | D39: ='Rennen 3'!D13 -> 28.5 | E39: ='Rennen 3'!E13 -> 00:30:26 | F39: ='Rennen 3'!F13 -> 39.79 | G39: ='Rennen 3'!G13 -> 64 | H39: ='Rennen 3'!H13 -> 0 | I39: ='Rennen 3'!I13 -> 6 | J39: ='Rennen 3'!J13 -> 3
A42: Rennen 4 | B42: ='Rennen 4'!$B$1 -> 2015-09-26
A43: ='Rennen 4'!A4 -> Marcel | B43: ='Rennen 4'!B4 -> 26.99 | C43: ='Rennen 4'!C4 -> 60 | D43: ='Rennen 4'!D4 -> 27.25 | E43: ='Rennen 4'!E4 -> 00:35:26 | F43: ='Rennen 4'!F4 -> 41.61 | G43: ='Rennen 4'!G4 -> 78 | H43: ='Rennen 4'!H4 -> 30 | I43: ='Rennen 4'!I4 -> 1 | J43: ='Rennen 4'!J4 -> 10
A44: ='Rennen 4'!A5 -> Sebastian | B44: ='Rennen 4'!B5 -> 27.15 | C44: ='Rennen 4'!C5 -> 51 | D44: ='Rennen 4'!D5 -> 27.55 | E44: ='Rennen 4'!E5 -> 00:35:49 | F44: ='Rennen 4'!F5 -> 41.16 | G44: ='Rennen 4'!G5 -> 78 | H44: ='Rennen 4'!H5 -> 20 | I44: ='Rennen 4'!I5 -> 2 | J44: ='Rennen 4'!J5 -> 8
A45: ='Rennen 4'!A6 -> Thomas | B45: ='Rennen 4'!B6 -> 27.09 | C45: ='Rennen 4'!C6 -> 37 | D45: ='Rennen 4'!D6 -> 27.54 | E45: ='Rennen 4'!E6 -> 00:35:50 | F45: ='Rennen 4'!F6 -> 41.18 | G45: ='Rennen 4'!G6 -> 78 | H45: ='Rennen 4'!H6 -> 10 | I45: ='Rennen 4'!I6 -> 3 | J45: ='Rennen 4'!J6 -> 6
A46: ='Rennen 4'!A7 -> Simon | B46: ='Rennen 4'!B7 -> 0 | C46: ='Rennen 4'!C7 -> 0 | D46: ='Rennen 4'!D7 -> 0 | E46: ='Rennen 4'!E7 -> 00:00:00 | F46: ='Rennen 4'!F7 -> 0 | G46: ='Rennen 4'!G7 -> 0 | H46: ='Rennen 4'!H7 -> 10 | I46: ='Rennen 4'!I7 -> 0 | J46: ='Rennen 4'!J7 -> 0
A47: ='Rennen 4'!A8 -> Siegfried | B47: ='Rennen 4'!B8 -> 27.37 | C47: ='Rennen 4'!C8 -> 22 | D47: ='Rennen 4'!D8 -> 27.79 | E47: ='Rennen 4'!E8 -> 00:35:42 | F47: ='Rennen 4'!F8 -> 40.81 | G47: ='Rennen 4'!G8 -> 77 | H47: ='Rennen 4'!H8 -> 0 | I47: ='Rennen 4'!I8 -> 4 | J47: ='Rennen 4'!J8 -> 5
A48: ='Rennen 4'!A9 -> Christian | B48: ='Rennen 4'!B9 -> 27.72 | C48: ='Rennen 4'!C9 -> 24 | D48: ='Rennen 4'!D9 -> 28.22 | E48: ='Rennen 4'!E9 -> 00:35:48 | F48: ='Rennen 4'!F9 -> 40.18 | G48: ='Rennen 4'!G9 -> 76 | H48: ='Rennen 4'!H9 -> 0 | I48: ='Rennen 4'!I9 -> 5 | J48: ='Rennen 4'!J9 -> 4
A49: ='Rennen 4'!A10 -> Richard | B49: ='Rennen 4'!B10 -> 27.86 | C49: ='Rennen 4'!C10 -> 64 | D49: ='Rennen 4'!D10 -> 28.77 | E49: ='Rennen 4'!E10 -> 00:35:30 | F49: ='Rennen 4'!F10 -> 39.41 | G49: ='Rennen 4'!G10 -> 74 | H49: ='Rennen 4'!H10 -> 0 | I49: ='Rennen 4'!I10 -> 7 | J49: ='Rennen 4'!J10 -> 2
A50: ='Rennen 4'!A11 -> Anna | B50: ='Rennen 4'!B11 -> 0 | C50: ='Rennen 4'!C11 -> 0 | D50: ='Rennen 4'!D11 -> 0 | E50: ='Rennen 4'!E11 -> 00:00:00 | F50: ='Rennen 4'!F11 -> 0 | G50: ='Rennen 4'!G11 -> 0 | H50: ='Rennen 4'!H11 -> 0 | I50: ='Rennen 4'!I11 -> 0 | J50: ='Rennen 4'!J11 -> 0
A51: ='Rennen 4'!A12 -> Carlos | B51: ='Rennen 4'!B12 -> 27.72 | C51: ='Rennen 4'!C12 -> 54 | D51: ='Rennen 4'!D12 -> 28.57 | E51: ='Rennen 4'!E12 -> 00:35:45 | F51: ='Rennen 4'!F12 -> 39.7 | G51: ='Rennen 4'!G12 -> 75 | H51: ='Rennen 4'!H12 -> 0 | I51: ='Rennen 4'!I12 -> 6 | J51: ='Rennen 4'!J12 -> 3
A52: ='Rennen 4'!A13 -> Jens | B52: ='Rennen 4'!B13 -> 0 | C52: ='Rennen 4'!C13 -> 0 | D52: ='Rennen 4'!D13 -> 0 | E52: ='Rennen 4'!E13 -> 00:00:00 | F52: ='Rennen 4'!F13 -> 0 | G52: ='Rennen 4'!G13 -> 0 | H52: ='Rennen 4'!H13 -> 0 | I52: ='Rennen 4'!I13 -> 0 | J52: ='Rennen 4'!J13 -> 0
A55: Rennen 5 | B55: ='Rennen 5'!$B$1 -> 2015-10-24
A56: ='Rennen 5'!A4 -> Marcel | B56: ='Rennen 5'!B4 -> 27.078 | C56: ='Rennen 5'!C4 -> 55 | D56: ='Rennen 5'!D4 -> 27.302 | E56: ='Rennen 5'!E4 -> 00:00:00 | F56: ='Rennen 5'!F4 -> 0 | G56: ='Rennen 5'!G4 -> 66 | H56: ='Rennen 5'!H4 -> 30 | I56: ='Rennen 5'!I4 -> -1 | J56: ='Rennen 5'!J4 -> 0
A57: ='Rennen 5'!A5 -> Sebastian | B57: ='Rennen 5'!B5 -> 0 | C57: ='Rennen 5'!C5 -> 0 | D57: ='Rennen 5'!D5 -> 0 | E57: ='Rennen 5'!E5 -> 00:00:00 | F57: ='Rennen 5'!F5 -> 0 | G57: ='Rennen 5'!G5 -> 0 | H57: ='Rennen 5'!H5 -> 20 | I57: ='Rennen 5'!I5 -> 0 | J57: ='Rennen 5'!J5 -> 0
A58: ='Rennen 5'!A6 -> Thomas | B58: ='Rennen 5'!B6 -> 27.323 | C58: ='Rennen 5'!C6 -> 46 | D58: ='Rennen 5'!D6 -> 27.61 | E58: ='Rennen 5'!E6 -> 00:00:00 | F58: ='Rennen 5'!F6 -> 0 | G58: ='Rennen 5'!G6 -> 66 | H58: ='Rennen 5'!H6 -> 10 | I58: ='Rennen 5'!I6 -> 4 | J58: ='Rennen 5'!J6 -> 5
A59: ='Rennen 5'!A7 -> Simon | B59: ='Rennen 5'!B7 -> 27.063 | C59: ='Rennen 5'!C7 -> 49 | D59: ='Rennen 5'!D7 -> 27.492 | E59: ='Rennen 5'!E7 -> 00:00:00 | F59: ='Rennen 5'!F7 -> 0 | G59: ='Rennen 5'!G7 -> 66 | H59: ='Rennen 5'!H7 -> 0 | I59: ='Rennen 5'!I7 -> 3 | J59: ='Rennen 5'!J7 -> 6
A60: ='Rennen 5'!A8 -> Siegfried | B60: ='Rennen 5'!B8 -> 27.194 | C60: ='Rennen 5'!C8 -> 60 | D60: ='Rennen 5'!D8 -> 27.484 | E60: ='Rennen 5'!E8 -> 00:00:00 | F60: ='Rennen 5'!F8 -> 0 | G60: ='Rennen 5'!G8 -> 66 | H60: ='Rennen 5'!H8 -> 0 | I60: ='Rennen 5'!I8 -> 2 | J60: ='Rennen 5'!J8 -> 8
A61: ='Rennen 5'!A9 -> Christian | B61: ='Rennen 5'!B9 -> 27.641 | C61: ='Rennen 5'!C9 -> 50 | D61: ='Rennen 5'!D9 -> 28.063 | E61: ='Rennen 5'!E9 -> 00:00:00 | F61: ='Rennen 5'!F9 -> 0 | G61: ='Rennen 5'!G9 -> 64 | H61: ='Rennen 5'!H9 -> 0 | I61: ='Rennen 5'!I9 -> -8 | J61: ='Rennen 5'!J9 -> 0
A62: ='Rennen 5'!A10 -> Richard | B62: ='Rennen 5'!B10 -> 27.441 | C62: ='Rennen 5'!C10 -> 30 | D62: ='Rennen 5'!D10 -> 27.881 | E62: ='Rennen 5'!E10 -> 00:00:00 | F62: ='Rennen 5'!F10 -> 0 | G62: ='Rennen 5'!G10 -> 65 | H62: ='Rennen 5'!H10 -> 0 | I62: ='Rennen 5'!I10 -> 5 | J62: ='Rennen 5'!J10 -> 4
A63: ='Rennen 5'!A11 -> Anna | B63: ='Rennen 5'!B11 -> 28.02 | C63: ='Rennen 5'!C11 -> 11 | D63: ='Rennen 5'!D11 -> 29.703 | E63: ='Rennen 5'!E11 -> 00:00:00 | F63: ='Rennen 5'!F11 -> 0 | G63: ='Rennen 5'!G11 -> 51 | H63: ='Rennen 5'!H11 -> 0 | I63: ='Rennen 5'!I11 -> 9 | J63: ='Rennen 5'!J11 -> 0
A64: ='Rennen 5'!A12 -> Carlos | B64: ='Rennen 5'!B12 -> 27.54 | C64: ='Rennen 5'!C12 -> 42 | D64: ='Rennen 5'!D12 -> 28.038 | E64: ='Rennen 5'!E12 -> 00:00:00 | F64: ='Rennen 5'!F12 -> 0 | G64: ='Rennen 5'!G12 -> 65 | H64: ='Rennen 5'!H12 -> 0 | I64: ='Rennen 5'!I12 -> 6 | J64: ='Rennen 5'!J12 -> 3
A65: ='Rennen 5'!A13 -> Jens | B65: ='Rennen 5'!B13 -> 27.49 | C65: ='Rennen 5'!C13 -> 64 | D65: ='Rennen 5'!D13 -> 27.969 | E65: ='Rennen 5'!E13 -> 00:00:00 | F65: ='Rennen 5'!F13 -> 0 | G65: ='Rennen 5'!G13 -> 64 | H65: ='Rennen 5'!H13 -> 0 | I65: ='Rennen 5'!I13 -> 7 | J65: ='Rennen 5'!J13 -> 2
A66: ='Rennen 5'!A52 -> 0 | B66: ='Rennen 5'!B52 -> 0 | C66: ='Rennen 5'!C52 -> 0 | D66: ='Rennen 5'!D52 -> 0 | E66: ='Rennen 5'!E52 -> 00:00:00 | F66: ='Rennen 5'!F52 -> 0 | G66: ='Rennen 5'!G52 -> 0 | H66: ='Rennen 5'!H52 -> 0 | I66: ='Rennen 5'!I52 -> 0 | J66: ='Rennen 5'!J52 -> 0
